[Event "Early-Titled-Tuesday-Blitz-May-14-2024"]
[Site "Chess.com"]
[Date "2024.05.14"]
[Round "4"]
[White "Mikhail_Golubev"]
[Black "OppieZippy"]
[Result "1-0"]
[WhiteElo "2550"]
[BlackElo "2350"]
[TimeControl "180+1"]
[EndTime "8:39:41 PDT"]
[Termination "Mikhail_Golubev won by resignation"]

1. e4 {[%clk 0:03:00.9]} 1... Nf6 {[%clk 0:02:59.2]} 2. e5 {[%clk 0:03:00.1]}
2... Nd5 {[%clk 0:02:59.7]} 3. d4 {[%clk 0:03:00.6]} 3... d6 {[%clk 0:03:00]} 4.
Nf3 {[%clk 0:03:01]} 4... dxe5 {[%clk 0:02:59.9]} 5. Nxe5 {[%clk 0:03:00.2]}
5... c6 {[%clk 0:03:00.5]} 6. h3 {[%clk 0:02:56.2]} 6... Bf5 {[%clk 0:02:58.5]}
7. Bd3 {[%clk 0:02:49.7]} 7... Bxd3 {[%clk 0:02:57.1]} 8. Qxd3 {[%clk
0:02:49.5]} 8... Nd7 {[%clk 0:02:57.7]} 9. Nf3 {[%clk 0:02:48]} 9... N7f6 {[%clk
0:02:55.2]} 10. O-O {[%clk 0:02:44.1]} 10... e6 {[%clk 0:02:55.3]} 11. c4 {[%clk
0:02:43.5]} 11... Nb4 {[%clk 0:02:53]} 12. Qe2 {[%clk 0:02:43]} 12... Be7 {[%clk
0:02:51.4]} 13. a3 {[%clk 0:02:37]} 13... Na6 {[%clk 0:02:51]} 14. b4 {[%clk
0:02:32.4]} 14... O-O {[%clk 0:02:48.8]} 15. Nc3 {[%clk 0:02:22.3]} 15... Nc7
{[%clk 0:02:48.8]} 16. Bf4 {[%clk 0:02:19.3]} 16... a5 {[%clk 0:02:46.1]} 17.
Rab1 {[%clk 0:02:18.3]} 17... axb4 {[%clk 0:02:42.4]} 18. axb4 {[%clk
0:02:19.2]} 18... Ra3 {[%clk 0:02:35.9]} 19. Rfc1 {[%clk 0:02:16.7]} 19... Na6
{[%clk 0:02:11.6]} 20. b5 {[%clk 0:02:13.7]} 20... cxb5 {[%clk 0:01:56.6]} 21.
Nxb5 {[%clk 0:02:09.5]} 21... Ra4 {[%clk 0:01:55.4]} 22. Qc2 {[%clk 0:02:02.9]}
22... Qa5 {[%clk 0:01:52.4]} 23. Nd6 {[%clk 0:01:19.6]} 23... Bxd6 {[%clk
0:01:37]} 24. Bxd6 {[%clk 0:01:19.1]} 24... Rc8 {[%clk 0:01:37.6]} 25. Ne5
{[%clk 0:00:56.9]} 25... b5 {[%clk 0:01:29.3]} 26. Rxb5 {[%clk 0:00:50.8]} 26...
Qd8 {[%clk 0:01:25.4]} 27. Qxa4 {[%clk 0:00:47.1]} 27... Qxd6 {[%clk 0:01:23.4]}
28. c5 {[%clk 0:00:44.2]} 28... Qd5 {[%clk 0:01:18.7]} 29. Qxa6 {[%clk
0:00:41.4]} 29... Ra8 {[%clk 0:01:19.3]} 30. Qc6 {[%clk 0:00:33.7]} 30... Qxc6
{[%clk 0:01:12.8]} 31. Nxc6 {[%clk 0:00:33.3]} 31... h5 {[%clk 0:01:13.4]} 32.
Rb8+ {[%clk 0:00:33.3]} 32... Rxb8 {[%clk 0:01:13.4]} 33. Nxb8 {[%clk
0:00:34.2]} 33... Kf8 {[%clk 0:01:14.3]} 34. c6 {[%clk 0:00:34.5]} 34... Nd5
{[%clk 0:01:14.5]} 35. c7 {[%clk 0:00:34.3]} 35... Nxc7 {[%clk 0:01:15.4]} 36.
Rxc7 {[%clk 0:00:34.1]} 1-0

[Event "Early-Titled-Tuesday-Blitz-May-14-2024"]
[Site "Chess.com"]
[Date "2024.05.14"]
[Round "4"]
[White "aloe_normansen"]
[Black "Adar_07"]
[Result "1-0"]
[WhiteElo "2575"]
[BlackElo "2716"]
[TimeControl "180+1"]
[EndTime "8:39:44 PDT"]
[Termination "aloe_normansen won by resignation"]

1. e4 {[%clk 0:03:00.9]} 1... e5 {[%clk 0:02:59.2]} 2. Nf3 {[%clk 0:03:00]} 2...
Nc6 {[%clk 0:02:59.8]} 3. Bb5 {[%clk 0:02:59.7]} 3... Nf6 {[%clk 0:03:00]} 4.
O-O {[%clk 0:02:58.9]} 4... Nxe4 {[%clk 0:03:00.6]} 5. d4 {[%clk 0:02:58.8]}
5... Nd6 {[%clk 0:03:00.7]} 6. dxe5 {[%clk 0:02:58.8]} 6... Nxb5 {[%clk
0:03:00.8]} 7. a4 {[%clk 0:02:59.5]} 7... Nbd4 {[%clk 0:03:00.1]} 8. Nxd4 {[%clk
0:02:59.7]} 8... d5 {[%clk 0:02:59]} 9. exd6 {[%clk 0:02:50.1]} 9... Bxd6 {[%clk
0:02:46.4]} 10. Nxc6 {[%clk 0:02:34.9]} 10... bxc6 {[%clk 0:02:46.2]} 11. Re1+
{[%clk 0:02:33.3]} 11... Be6 {[%clk 0:02:46.4]} 12. Nc3 {[%clk 0:02:29.6]} 12...
O-O {[%clk 0:02:45.8]} 13. Qf3 {[%clk 0:02:26.5]} 13... Qd7 {[%clk 0:02:03.3]}
14. Bf4 {[%clk 0:02:24.3]} 14... Rab8 {[%clk 0:01:59.7]} 15. b3 {[%clk
0:02:21.5]} 15... Rfe8 {[%clk 0:01:54.9]} 16. h3 {[%clk 0:02:17.8]} 16... Rb4
{[%clk 0:01:46.7]} 17. Bh2 {[%clk 0:01:57.5]} 17... Bxh2+ {[%clk 0:01:31.2]} 18.
Kxh2 {[%clk 0:01:58.4]} 18... Qd2 {[%clk 0:01:31.3]} 19. Re2 {[%clk 0:01:51.6]}
19... Qd6+ {[%clk 0:01:29.2]} 20. Kg1 {[%clk 0:01:40]} 20... Rd4 {[%clk
0:01:23.9]} 21. Rae1 {[%clk 0:01:35.4]} 21... Rd8 {[%clk 0:01:18.5]} 22. Qe3
{[%clk 0:01:23]} 22... a6 {[%clk 0:01:04.4]} 23. Qg5 {[%clk 0:01:18.8]} 23... c5
{[%clk 0:00:58.8]} 24. Ne4 {[%clk 0:01:16.1]} 24... Rxe4 {[%clk 0:00:23.8]} 25.
Rxe4 {[%clk 0:01:15.9]} 25... h6 {[%clk 0:00:23.8]} 26. Qe3 {[%clk 0:01:13.5]}
26... Bd5 {[%clk 0:00:18.6]} 27. Re8+ {[%clk 0:01:12.8]} 27... Rxe8 {[%clk
0:00:19.2]} 28. Qxe8+ {[%clk 0:01:13.7]} 28... Kh7 {[%clk 0:00:20]} 29. Qe5
{[%clk 0:01:13.6]} 29... Qd7 {[%clk 0:00:18.1]} 30. Rd1 {[%clk 0:01:09.6]} 30...
c6 {[%clk 0:00:18.1]} 31. c4 {[%clk 0:01:08.5]} 31... Qe6 {[%clk 0:00:17.2]} 32.
Qxe6 {[%clk 0:01:06.6]} 32... Bxe6 {[%clk 0:00:17.6]} 33. Rd6 {[%clk 0:01:07.2]}
1-0

[Event "Early-Titled-Tuesday-Blitz-May-14-2024"]
[Site "Chess.com"]
[Date "2024.05.14"]
[Round "4"]
[White "Sadykov_Ramil"]
[Black "mistrzemi"]
[Result "1-0"]
[WhiteElo "2614"]
[BlackElo "2432"]
[TimeControl "180+1"]
[EndTime "8:39:46 PDT"]
[Termination "Sadykov_Ramil won by resignation"]

1. a3 {[%clk 0:03:00.9]} 1... Nf6 {[%clk 0:02:47]} 2. Nf3 {[%clk 0:02:55.8]}
2... d5 {[%clk 0:02:46.5]} 3. e3 {[%clk 0:02:53.7]} 3... c5 {[%clk 0:02:46.6]}
4. c4 {[%clk 0:02:52]} 4... e6 {[%clk 0:02:43.8]} 5. cxd5 {[%clk 0:02:50.9]}
5... exd5 {[%clk 0:02:43.3]} 6. d4 {[%clk 0:02:51.1]} 6... Nc6 {[%clk
0:02:41.7]} 7. Bb5 {[%clk 0:02:44.4]} 7... a6 {[%clk 0:02:37.7]} 8. Bxc6+ {[%clk
0:02:37.9]} 8... bxc6 {[%clk 0:02:38.6]} 9. dxc5 {[%clk 0:02:38.1]} 9... Bxc5
{[%clk 0:02:37.9]} 10. Qc2 {[%clk 0:02:38.4]} 10... Bb6 {[%clk 0:02:14.1]} 11.
Nc3 {[%clk 0:02:22.9]} 11... O-O {[%clk 0:02:09.7]} 12. Na4 {[%clk 0:02:20.8]}
12... Ba7 {[%clk 0:01:48.7]} 13. O-O {[%clk 0:02:09.7]} 13... Qe7 {[%clk
0:01:37.8]} 14. b4 {[%clk 0:01:59.6]} 14... a5 {[%clk 0:01:23.4]} 15. Bd2 {[%clk
0:01:48]} 15... Ba6 {[%clk 0:01:21.3]} 16. Rfc1 {[%clk 0:01:46.1]} 16... Rac8
{[%clk 0:01:21]} 17. bxa5 {[%clk 0:01:44.8]} 17... c5 {[%clk 0:01:21.2]} 18. Bc3
{[%clk 0:01:37.4]} 18... Ne4 {[%clk 0:01:18.8]} 19. Nb6 {[%clk 0:01:36.2]} 19...
Rcd8 {[%clk 0:01:18.9]} 20. Be5 {[%clk 0:01:29.8]} 20... Rfe8 {[%clk 0:01:12.2]}
21. h3 {[%clk 0:01:14.3]} 21... Qe6 {[%clk 0:01:11]} 22. Rab1 {[%clk 0:01:12.7]}
22... Qg6 {[%clk 0:01:09.3]} 23. Bc7 {[%clk 0:01:09.5]} 23... Rc8 {[%clk
0:00:51.8]} 24. Nxc8 {[%clk 0:01:06.8]} 24... Rxc8 {[%clk 0:00:52.7]} 25. Bb6
{[%clk 0:00:57.8]} 25... Bb8 {[%clk 0:00:50.4]} 26. Bxc5 {[%clk 0:00:54.8]}
26... h6 {[%clk 0:00:31.1]} 27. Rb6 {[%clk 0:00:53.3]} 27... Rc6 {[%clk
0:00:14.4]} 1-0

[Event "Early-Titled-Tuesday-Blitz-May-14-2024"]
[Site "Chess.com"]
[Date "2024.05.14"]
[Round "4"]
[White "Artemiki"]
[Black "Akewjon"]
[Result "1-0"]
[WhiteElo "2610"]
[BlackElo "2778"]
[TimeControl "180+1"]
[EndTime "8:39:48 PDT"]
[Termination "Artemiki won by resignation"]

1. e4 {[%clk 0:03:00.9]} 1... c5 {[%clk 0:02:50.4]} 2. Nf3 {[%clk 0:03:00.7]}
2... d6 {[%clk 0:02:49]} 3. d4 {[%clk 0:03:01.1]} 3... cxd4 {[%clk 0:02:49.9]}
4. Nxd4 {[%clk 0:03:01.7]} 4... Nf6 {[%clk 0:02:48.9]} 5. Nc3 {[%clk 0:03:02]}
5... a6 {[%clk 0:02:46.3]} 6. Be3 {[%clk 0:03:02.4]} 6... e5 {[%clk 0:02:44.2]}
7. Nf3 {[%clk 0:03:02.7]} 7... Be7 {[%clk 0:02:43.6]} 8. Bc4 {[%clk 0:03:02.3]}
8... Be6 {[%clk 0:02:41.8]} 9. Bb3 {[%clk 0:03:01.2]} 9... O-O {[%clk
0:02:33.7]} 10. O-O {[%clk 0:03:01]} 10... Qc7 {[%clk 0:02:32.6]} 11. Nh4 {[%clk
0:02:48.8]} 11... Nbd7 {[%clk 0:02:31.2]} 12. Nf5 {[%clk 0:02:43.6]} 12... Bxf5
{[%clk 0:02:26.6]} 13. exf5 {[%clk 0:02:44.5]} 13... Rac8 {[%clk 0:02:26.5]} 14.
Nd5 {[%clk 0:02:27.8]} 14... Nxd5 {[%clk 0:02:26.1]} 15. Bxd5 {[%clk 0:02:28.3]}
15... Nf6 {[%clk 0:02:23.1]} 16. c3 {[%clk 0:01:56.5]} 16... b5 {[%clk
0:02:14.4]} 17. a3 {[%clk 0:01:50.4]} 17... Qd7 {[%clk 0:02:10.8]} 18. g4 {[%clk
0:01:45.6]} 18... Nxd5 {[%clk 0:02:06.6]} 19. Qxd5 {[%clk 0:01:44.2]} 19... Rc4
{[%clk 0:02:07.5]} 20. h3 {[%clk 0:01:39.5]} 20... g6 {[%clk 0:02:02.2]} 21.
fxg6 {[%clk 0:01:11.8]} 21... hxg6 {[%clk 0:01:59.2]} 22. Rad1 {[%clk
0:01:12.2]} 22... Kg7 {[%clk 0:01:57.6]} 23. Qxe5+ {[%clk 0:01:09.2]} 23... Bf6
{[%clk 0:01:47.9]} 24. Bh6+ {[%clk 0:00:37.6]} 24... Kxh6 {[%clk 0:01:44.2]} 25.
Qxf6 {[%clk 0:00:38.5]} 25... d5 {[%clk 0:01:11.4]} 26. Rfe1 {[%clk 0:00:31]}
26... Re8 {[%clk 0:01:06.7]} 27. Rxe8 {[%clk 0:00:27.8]} 27... Qxe8 {[%clk
0:01:07.6]} 28. Rxd5 {[%clk 0:00:25.3]} 28... Qe1+ {[%clk 0:01:05.4]} 29. Kh2
{[%clk 0:00:24.9]} 1-0

[Event "Early-Titled-Tuesday-Blitz-May-14-2024"]
[Site "Chess.com"]
[Date "2024.05.14"]
[Round "4"]
[White "maurovargas01"]
[Black "Louis-Paulsen-Fan"]
[Result "0-1"]
[WhiteElo "1960"]
[BlackElo "2326"]
[TimeControl "180+1"]
[EndTime "8:39:50 PDT"]
[Termination "Louis-Paulsen-Fan won by checkmate"]

1. e4 {[%clk 0:01:32.2]} 1... Nf6 {[%clk 0:02:59.5]} 2. Nc3 {[%clk 0:01:31.6]}
2... e5 {[%clk 0:02:59.5]} 3. d3 {[%clk 0:01:31.8]} 3... d5 {[%clk 0:02:58.7]}
4. f3 {[%clk 0:01:30.8]} 4... d4 {[%clk 0:02:37.3]} 5. Nce2 {[%clk 0:01:30.6]}
5... c5 {[%clk 0:02:37.8]} 6. g3 {[%clk 0:01:30.5]} 6... Nc6 {[%clk 0:02:37.3]}
7. Bg2 {[%clk 0:01:30.1]} 7... Bd6 {[%clk 0:02:35.2]} 8. f4 {[%clk 0:01:29.3]}
8... Ng4 {[%clk 0:02:23.5]} 9. Nf3 {[%clk 0:01:27.2]} 9... O-O {[%clk
0:02:18.4]} 10. O-O {[%clk 0:01:26.7]} 10... f5 {[%clk 0:02:14.5]} 11. exf5
{[%clk 0:01:18.8]} 11... Bxf5 {[%clk 0:02:10.7]} 12. h3 {[%clk 0:01:18.6]} 12...
Ne3 {[%clk 0:02:08.3]} 13. Bxe3 {[%clk 0:01:17.2]} 13... dxe3 {[%clk 0:02:08.7]}
14. fxe5 {[%clk 0:01:14]} 14... Nxe5 {[%clk 0:02:03.9]} 15. Nxe5 {[%clk
0:01:10.7]} 15... Bxe5 {[%clk 0:02:03.8]} 16. Qc1 {[%clk 0:00:31.6]} 16... Qe7
{[%clk 0:01:49.1]} 17. g4 {[%clk 0:00:30.1]} 17... Bg6 {[%clk 0:01:46.7]} 18.
Rb1 {[%clk 0:00:20.4]} 18... Rxf1+ {[%clk 0:01:40.8]} 19. Qxf1 {[%clk
0:00:20.4]} 19... Rf8 {[%clk 0:01:40.6]} 20. Qe1 {[%clk 0:00:20.1]} 20... h5
{[%clk 0:01:25.1]} 21. gxh5 {[%clk 0:00:16.3]} 21... Bxh5 {[%clk 0:01:25.2]} 22.
Ng3 {[%clk 0:00:16.2]} 22... Qg5 {[%clk 0:01:03.8]} 23. Ne4 {[%clk 0:00:14.6]}
23... Qf4 {[%clk 0:00:57.6]} 24. c3 {[%clk 0:00:04.4]} 24... Qh2# {[%clk
0:00:56.4]} 0-1

[Event "Early-Titled-Tuesday-Blitz-May-14-2024"]
[Site "Chess.com"]
[Date "2024.05.14"]
[Round "4"]
[White "Szparu"]
[Black "AryanTari"]
[Result "0-1"]
[WhiteElo "2859"]
[BlackElo "3062"]
[TimeControl "180+1"]
[EndTime "8:39:51 PDT"]
[Termination "AryanTari won by resignation"]

1. e4 {[%clk 0:03:00.9]} 1... e5 {[%clk 0:02:59.5]} 2. Nf3 {[%clk 0:03:00.9]}
2... Nc6 {[%clk 0:03:00.2]} 3. Bb5 {[%clk 0:03:01.1]} 3... Nge7 {[%clk
0:03:00.1]} 4. Nc3 {[%clk 0:02:59.9]} 4... Ng6 {[%clk 0:02:57.4]} 5. d4 {[%clk
0:03:00]} 5... exd4 {[%clk 0:02:58]} 6. Nxd4 {[%clk 0:03:00.5]} 6... Nxd4 {[%clk
0:02:57]} 7. Qxd4 {[%clk 0:03:01.4]} 7... c6 {[%clk 0:02:57.7]} 8. Be2 {[%clk
0:03:01]} 8... Qb6 {[%clk 0:02:56.9]} 9. Qd3 {[%clk 0:02:56.3]} 9... Be7 {[%clk
0:02:55.8]} 10. O-O {[%clk 0:02:55.6]} 10... O-O {[%clk 0:02:55.6]} 11. Be3
{[%clk 0:02:49.7]} 11... Qc7 {[%clk 0:02:48]} 12. f4 {[%clk 0:02:45.6]} 12... d6
{[%clk 0:02:48.4]} 13. f5 {[%clk 0:02:36.9]} 13... Ne5 {[%clk 0:02:48.3]} 14.
Qd1 {[%clk 0:02:28.6]} 14... Bf6 {[%clk 0:02:39.9]} 15. Qd2 {[%clk 0:02:26.3]}
15... Qe7 {[%clk 0:02:35.2]} 16. Rad1 {[%clk 0:02:25.6]} 16... Rd8 {[%clk
0:02:34.6]} 17. a4 {[%clk 0:02:20.8]} 17... h6 {[%clk 0:02:25.4]} 18. g3 {[%clk
0:02:18.6]} 18... b6 {[%clk 0:02:20.3]} 19. h4 {[%clk 0:02:09.4]} 19... Bb7
{[%clk 0:02:18.6]} 20. Kh2 {[%clk 0:02:08.4]} 20... d5 {[%clk 0:02:03]} 21. exd5
{[%clk 0:02:08.2]} 21... cxd5 {[%clk 0:02:03.9]} 22. Bd4 {[%clk 0:02:07]} 22...
Nc4 {[%clk 0:01:55.8]} 23. Bxf6 {[%clk 0:01:35.9]} 23... Qxf6 {[%clk 0:01:52.5]}
24. Qc1 {[%clk 0:01:36.2]} 24... d4 {[%clk 0:01:44.6]} 25. Bxc4 {[%clk
0:01:32.2]} 25... dxc3 {[%clk 0:01:45.2]} 26. b3 {[%clk 0:01:08.6]} 26... Qc6
{[%clk 0:01:32.1]} 27. Rf2 {[%clk 0:01:02.6]} 27... Qc5 {[%clk 0:01:29.9]} 28.
Rdf1 {[%clk 0:01:01.2]} 28... Rd4 {[%clk 0:01:27.7]} 29. f6 {[%clk 0:00:57.5]}
29... Qe5 {[%clk 0:01:18.7]} 30. Bxf7+ {[%clk 0:00:25.4]} 30... Kxf7 {[%clk
0:01:02.9]} 31. fxg7+ {[%clk 0:00:25.6]} 31... Kxg7 {[%clk 0:01:02.2]} 32. Rf7+
{[%clk 0:00:25]} 32... Kg8 {[%clk 0:01:02.9]} 33. Rxb7 {[%clk 0:00:23]} 33...
Rd2+ {[%clk 0:00:57.6]} 34. Kh1 {[%clk 0:00:20.5]} 34... Qe4+ {[%clk 0:00:54.9]}
0-1

[Event "Early-Titled-Tuesday-Blitz-May-14-2024"]
[Site "Chess.com"]
[Date "2024.05.14"]
[Round "4"]
[White "Anu-triz"]
[Black "whitemirrorninja"]
[Result "1-0"]
[WhiteElo "2315"]
[BlackElo "2490"]
[TimeControl "180+1"]
[EndTime "8:39:51 PDT"]
[Termination "Anu-triz won by resignation"]

1. b3 {[%clk 0:03:00.9]} 1... e6 {[%clk 0:02:56]} 2. Bb2 {[%clk 0:03:01.6]} 2...
Nf6 {[%clk 0:02:55.5]} 3. d4 {[%clk 0:03:00.2]} 3... a5 {[%clk 0:02:54.2]} 4.
Nf3 {[%clk 0:03:00.5]} 4... a4 {[%clk 0:02:54.3]} 5. g3 {[%clk 0:02:59.8]} 5...
a3 {[%clk 0:02:53.2]} 6. Bc1 {[%clk 0:02:57.9]} 6... Ne4 {[%clk 0:02:49.8]} 7.
Qd3 {[%clk 0:02:42.6]} 7... d5 {[%clk 0:02:43.1]} 8. Bg2 {[%clk 0:02:36.3]} 8...
b6 {[%clk 0:02:40.2]} 9. O-O {[%clk 0:02:32.9]} 9... Ba6 {[%clk 0:02:40.7]} 10.
c4 {[%clk 0:02:32.2]} 10... Bb7 {[%clk 0:02:15]} 11. Nc3 {[%clk 0:02:24.7]}
11... Bb4 {[%clk 0:02:07]} 12. cxd5 {[%clk 0:02:16.9]} 12... Nxc3 {[%clk
0:01:55.7]} 13. dxe6 {[%clk 0:02:09.9]} 13... fxe6 {[%clk 0:01:42.6]} 14. Bd2
{[%clk 0:02:02.2]} 14... Ba6 {[%clk 0:01:22.4]} 15. Qe3 {[%clk 0:01:40.6]} 15...
Nxe2+ {[%clk 0:01:22.9]} 16. Kh1 {[%clk 0:01:38.8]} 16... Bxd2 {[%clk
0:01:17.1]} 17. Nxd2 {[%clk 0:01:32.9]} 17... Ra7 {[%clk 0:01:01.2]} 18. Rfe1
{[%clk 0:01:24.2]} 18... Nxd4 {[%clk 0:00:49.9]} 19. Nf3 {[%clk 0:01:09.7]}
19... Nbc6 {[%clk 0:00:44.5]} 20. Rad1 {[%clk 0:01:05.6]} 20... O-O {[%clk
0:00:25.8]} 21. Nxd4 {[%clk 0:01:03.7]} 21... Nxd4 {[%clk 0:00:25.9]} 22. Rxd4
{[%clk 0:01:02.8]} 22... Qf6 {[%clk 0:00:26.5]} 23. Rf4 {[%clk 0:01:00.8]} 23...
Qe7 {[%clk 0:00:23.1]} 24. Rxf8+ {[%clk 0:00:59.8]} 24... Qxf8 {[%clk
0:00:23.8]} 25. Qxe6+ {[%clk 0:00:59]} 25... Kh8 {[%clk 0:00:20.2]} 26. Qe8
{[%clk 0:00:57.1]} 26... Ra8 {[%clk 0:00:15.4]} 27. Bxa8 {[%clk 0:00:54.7]}
27... Kg8 {[%clk 0:00:15.1]} 28. Bd5+ {[%clk 0:00:53.2]} 1-0

[Event "Early-Titled-Tuesday-Blitz-May-14-2024"]
[Site "Chess.com"]
[Date "2024.05.14"]
[Round "4"]
[White "abelmat"]
[Black "Knightmare1014"]
[Result "1-0"]
[WhiteElo "2016"]
[BlackElo "2307"]
[TimeControl "180+1"]
[EndTime "8:39:53 PDT"]
[Termination "abelmat won by resignation"]

1. d4 {[%clk 0:03:00.9]} 1... d5 {[%clk 0:02:59.7]} 2. c4 {[%clk 0:03:00.6]}
2... e6 {[%clk 0:03:00.1]} 3. Nf3 {[%clk 0:03:00.4]} 3... Nf6 {[%clk 0:03:00.3]}
4. Nc3 {[%clk 0:03:00.7]} 4... Be7 {[%clk 0:02:59.4]} 5. Bf4 {[%clk 0:03:00.4]}
5... O-O {[%clk 0:02:57.2]} 6. e3 {[%clk 0:03:00.9]} 6... b6 {[%clk 0:02:57.6]}
7. cxd5 {[%clk 0:02:59]} 7... Nxd5 {[%clk 0:02:55]} 8. Nxd5 {[%clk 0:02:59.1]}
8... Qxd5 {[%clk 0:02:55.3]} 9. a3 {[%clk 0:02:58.7]} 9... c5 {[%clk 0:02:50.4]}
10. Bd3 {[%clk 0:02:50.7]} 10... Ba6 {[%clk 0:02:49.5]} 11. Bxa6 {[%clk
0:02:48.3]} 11... Nxa6 {[%clk 0:02:50.4]} 12. O-O {[%clk 0:02:43.8]} 12... cxd4
{[%clk 0:02:40.6]} 13. exd4 {[%clk 0:02:41.6]} 13... Rfd8 {[%clk 0:02:37.6]} 14.
Rc1 {[%clk 0:02:38.5]} 14... Rac8 {[%clk 0:02:26.5]} 15. Qa4 {[%clk 0:02:28.1]}
15... Qb7 {[%clk 0:02:26.2]} 16. h3 {[%clk 0:02:20.2]} 16... Bf6 {[%clk
0:02:24.2]} 17. Be5 {[%clk 0:02:15.8]} 17... Be7 {[%clk 0:02:04.4]} 18. Rfd1
{[%clk 0:01:52.3]} 18... h6 {[%clk 0:02:03.8]} 19. Qb3 {[%clk 0:01:36.8]} 19...
Rd5 {[%clk 0:01:59.6]} 20. Rxc8+ {[%clk 0:01:31.1]} 20... Qxc8 {[%clk
0:01:59.3]} 21. Qe3 {[%clk 0:01:15]} 21... Nb8 {[%clk 0:01:52.7]} 22. Rc1 {[%clk
0:01:13.4]} 22... Qb7 {[%clk 0:01:52.7]} 23. Rc7 {[%clk 0:01:10]} 23... Qa6
{[%clk 0:01:44.3]} 24. Rxe7 {[%clk 0:01:06.9]} 24... Nc6 {[%clk 0:01:44.4]} 25.
Re8+ {[%clk 0:01:02.7]} 25... Kh7 {[%clk 0:01:44.1]} 26. Qe4+ {[%clk 0:00:37.4]}
26... f5 {[%clk 0:01:43]} 27. Qh4 {[%clk 0:00:36.8]} 27... Nxe5 {[%clk
0:01:05.7]} 28. Ng5+ {[%clk 0:00:22]} 1-0

[Event "Early-Titled-Tuesday-Blitz-May-14-2024"]
[Site "Chess.com"]
[Date "2024.05.14"]
[Round "4"]
[White "Hamisandwich"]
[Black "Slovineanu"]
[Result "1-0"]
[WhiteElo "2726"]
[BlackElo "2486"]
[TimeControl "180+1"]
[EndTime "8:39:54 PDT"]
[Termination "Hamisandwich won by resignation"]

1. e3 {[%clk 0:03:00.9]} 1... Nf6 {[%clk 0:02:56.6]} 2. b3 {[%clk 0:02:59.7]}
2... e6 {[%clk 0:02:55.3]} 3. Bb2 {[%clk 0:02:59.4]} 3... d5 {[%clk 0:02:55.7]}
4. f4 {[%clk 0:02:58.9]} 4... Be7 {[%clk 0:02:55]} 5. Nf3 {[%clk 0:02:59.4]}
5... c5 {[%clk 0:02:50.8]} 6. Bb5+ {[%clk 0:02:57.7]} 6... Bd7 {[%clk
0:02:50.4]} 7. a4 {[%clk 0:02:56.7]} 7... a6 {[%clk 0:02:40.2]} 8. Bxd7+ {[%clk
0:02:47.8]} 8... Nbxd7 {[%clk 0:02:39.3]} 9. a5 {[%clk 0:02:48.3]} 9... b5
{[%clk 0:02:37.2]} 10. axb6 {[%clk 0:02:47.9]} 10... Qxb6 {[%clk 0:02:36.7]} 11.
Nc3 {[%clk 0:02:46.8]} 11... O-O {[%clk 0:02:35.3]} 12. Qe2 {[%clk 0:02:38.5]}
12... c4 {[%clk 0:02:30.7]} 13. Na4 {[%clk 0:02:38.3]} 13... Qb7 {[%clk
0:02:26.2]} 14. bxc4 {[%clk 0:02:32]} 14... dxc4 {[%clk 0:02:16.8]} 15. Qxc4
{[%clk 0:02:14.6]} 15... Rfc8 {[%clk 0:02:07.4]} 16. Qb3 {[%clk 0:02:10.3]}
16... Qe4 {[%clk 0:02:06.4]} 17. Nc3 {[%clk 0:02:02.5]} 17... Qg6 {[%clk
0:01:59.1]} 18. O-O {[%clk 0:01:59]} 18... Nc5 {[%clk 0:01:59]} 19. Qa2 {[%clk
0:01:49]} 19... Qxc2 {[%clk 0:01:57.6]} 20. Ba3 {[%clk 0:01:44.1]} 20... Qxa2
{[%clk 0:01:47.6]} 21. Rxa2 {[%clk 0:01:45]} 21... Kf8 {[%clk 0:01:45.1]} 22.
Nd4 {[%clk 0:01:39]} 22... Nce4 {[%clk 0:01:31.5]} 23. Bxe7+ {[%clk 0:01:17.8]}
23... Kxe7 {[%clk 0:01:31.5]} 24. Na4 {[%clk 0:01:18.1]} 24... Rab8 {[%clk
0:01:13.6]} 25. Rfa1 {[%clk 0:01:16.4]} 25... Nd5 {[%clk 0:00:55.6]} 26. Kf1
{[%clk 0:00:55.8]} 26... Nb4 {[%clk 0:00:50.4]} 27. Rb2 {[%clk 0:00:55.7]} 27...
Nd3 {[%clk 0:00:31.3]} 28. Rxb8 {[%clk 0:00:55.5]} 28... Rxb8 {[%clk 0:00:31.2]}
29. Ke2 {[%clk 0:00:54.3]} 29... Ndc5 {[%clk 0:00:26.4]} 30. Nc6+ {[%clk
0:00:54.4]} 1-0